Workbook

Sheet Лист1
B1: МЕНЮ
B2: Для обучащихся 1-4 классов общеобразовательных организаций Республики Татарстан
B4: № рец. | C4: Наименование блюд | G4: Выход | H4: Цена | I4: Белки, г | J4: Жиры, г | L4: Углеводы, г | N4: Калорийность, ккал | P4: Витамин B1, мг | Q4: Витамин С, мг | R4: Витамин А, мг | U4: Витамин Е, мг | W4: Ca, мг | X4: P, мг | Y4: Mg, мг | Z4: Fe, мг
B5: 1 НЕДЕЛЯ
B6: Понедельник 1 неделя
B7: № 338 Дели 2015 г | C7: ПЛОДЫ И ЯГОДЫ СВЕЖИЕ (ЯБЛОКИ) | G7: 120 | I7: 0.480 | J7: 0.480 | L7: 11.760 | N7: 56 | P7: 0.036 | Q7: 12.000 | R7: - | U7: 0.240 | W7: 19.200 | X7: 13.200 | Y7: 10.800 | Z7: 2.640
B8: №70/2015г,Дели | C8: ОВОЩИ НАТУРАЛЬНЫЕ СОЛЕНЫЕ | G8: 60 | I8: 0.480 | J8: 0.060 | L8: 1.020 | N8: 8 | P8: 0.012 | Q8: 3.000 | R8: - | U8: 0.060 | W8: 13.800 | X8: 14.400 | Y8: 8.400 | Z8: 0.360
B9: ТТК от 2020г | C9: БИФШТЕКС РУБЛЕНЫЙ ПО-ДОМАШНЕМУ ( п/ф ) | G9: 90г | I9: 12.031 | J9: 11.345 | L9: 8.879 | N9: 199 | P9: 0.069 | Q9: 2.486 | R9: 1.726 | U9: 1.337 | W9: 29.236 | X9: 151.324 | Y9: 20.328 | Z9: 2.114
B10: №303/2015г,Дели | C10: КАША ВЯЗКАЯ С МАСЛОМ(ГРЕЧНЕВАЯ) | G10: 150/5 | I10: 3.540 | J10: 8.268 | L10: 22.068 | N10: 177 | P10: 0.154 | Q10: - | R10: 41.000 | U10: 0.321 | W10: 15.260 | X10: 96.292 | Y10: 54.930 | Z10: 1.848
B11: № 685 Сбор. рецеп. 2004 г | C11: ЧАЙ С САХАРОМ | G11: 200/15 | I11: 0.210 | J11: 0.050 | L11: 15.020 | N11: 61 | P11: - | Q11: - | R11: - | U11: - | W11: 0.450 | X11: - | Y11: - | Z11: 0.045
C12: ХЛЕБ БЕЛЫЙ 1 сорт | G12: 30 | I12: 2.280 | J12: 0.240 | L12: 14.760 | N12: 71 | P12: 0.033 | Q12: - | R12: - | U12: 0.330 | W12: 6.000 | X12: 19.500 | Y12: 4.200 | Z12: 0.330
C13: ХЛЕБ РЖАНО-ПШЕНИЧНЫЙ | G13: 20 | I13: 1.000 | J13: 0.200 | L13: 9.000 | N13: 44 | P13: 0.014 | Q13: - | R13: - | U13: 0.108 | W13: 2.760 | X13: 12.720 | Y13: 3.000 | Z13: 0.372
B14: Итого: | H14: 0.00 | I14: =I13+I12+I11+I10+I9+I8+I7 -> 20.021 | J14: =J13+J12+J11+J10+J9+J8+J7 -> 20.643 | L14: =L13+L12+L11+L10+L9+L8+L7 -> 82.507 | N14: =N13+N12+N11+N10+N9+N8+N7 -> 616 | P14: 0.318 | Q14: 17.486 | R14: 42.726 | U14: 2.396 | W14: 86.706 | X14: 307.436 | Y14: 101.658 | Z14: 7.709
B15: Вторник 1 неделя
B16: №54/2017г,Дели | C16: САЛАТ ИЗ СВЕКЛЫ С ЯБЛОКАМИ | G16: 80г | I16: 0.884 | J16: 4.929 | L16: 9.071 | N16: 85 | P16: 0.017 | Q16: 7.359 | R16: - | U16: 2.206 | W16: 23.103 | X16: 25.343 | Y16: 13.591 | Z16: 1.197
B17: ттк | C17: ЖАРКОЕ ИЗ ПТИЦЫ (грудки куриные) | G17: 50/150 | I17: 15.695 | J17: 15.178 | L17: 23.955 | N17: 295 | P17: 0.222 | Q17: 27.825 | R17: 28.500 | U17: 2.174 | W17: 35.535 | X17: 197.840 | Y17: 47.778 | Z17: 2.260
B18: № 700 Сбор. рецеп. 2004 г | C18: НАПИТОК КЛЮКВЕННЫЙ | G18: 200 | I18: 0.125 | J18: 0.050 | L18: 24.877 | N18: 103 | P18: 0.005 | Q18: 3.750 | R18: - | U18: 0.250 | W18: 4.220 | X18: 2.750 | Y18: 3.750 | Z18: 0.222
C19: ХЛЕБ РЖАНО-ПШЕНИЧНЫЙ | G19: 20 | I19: 1.000 | J19: 0.200 | L19: 9.000 | N19: 44 | P19: 0.014 | Q19: - | R19: - | U19: 0.108 | W19: 2.760 | X19: 12.720 | Y19: 3.000 | Z19: 0.372
C20: ХЛЕБ БЕЛЫЙ 1 сорт | G20: 30 | I20: 2.280 | J20: 0.240 | L20: 14.760 | N20: 71 | P20: 0.033 | Q20: - | R20: - | U20: 0.330 | W20: 6.000 | X20: 19.500 | Y20: 4.200 | Z20: 0.330
B21: Итого: | H21: 0.00 | I21: =I20+I19+I18+I17+I16 -> 19.98 | J21: =J20+J19+J18+J17+J16 -> 20.597 | L21: =L20+L19+L18+L17+L16 -> 81.663 | N21: =N20+N19+N18+N17+N16 -> 598 | P21: 0.291 | Q21: 38.934 | R21: 28.5 | U21: 5.068 | W21: 71.618 | X21: 258.153 | Y21: 72.319 | Z21: 4.381
B22: Среда 1 неделя
B23: № 338 Дели 2015 г | C23: ПЛОДЫ И ЯГОДЫ СВЕЖИЕ (ЯБЛОКИ) | G23: 120 | I23: 0.480 | J23: 0.480 | L23: 11.760 | N23: 56 | P23: 0.036 | Q23: 12.000 | R23: - | U23: 0.240 | W23: 19.200 | X23: 13.200 | Y23: 10.800 | Z23: 2.640
B24: №47/2015г,Дели | C24: САЛАТ ИЗ КВАШЕНОЙ КАПУСТЫ (без лука) | G24: 80 | I24: 1.310 | J24: 4.069 | L24: 6.176 | N24: 69 | P24: 0.015 | Q24: 21.839 | R24: - | U24: 1.833 | W24: 35.063 | X24: 22.647 | Y24: 11.648 | Z24: 0.449
B25: №260/2015г,Дели | C25: ГУЛЯШ | G25: 50/50 | I25: 10.031 | J25: 14.678 | L25: 2.845 | N25: 157 | P25: 0.061 | Q25: 2.440 | R25: - | U25: 2.598 | W25: 14.890 | X25: 159.066 | Y25: 20.920 | Z25: 2.340
B26: №218/2016г,Дели | C26: МАКАРОННЫЕ ИЗДЕЛИЯ ОТВАРНЫЕ | G26: 150 | I26: 4.644 | J26: 0.820 | L26: 28.070 | N26: 155 | P26: 0.870 | Q26: - | R26: 21.000 | U26: 0.816 | W26: 16.457 | X26: 47.009 | Y26: 8.479 | Z26: 0.869
B27: № 686 2004 г, №377 Дели 2015 | C27: ЧАЙ С ЛИМОНОМ | G27: 200/15/7 | I27: 0.273 | J27: 0.057 | L27: 15.230 | N27: 63 | P27: 0.003 | Q27: 2.800 | R27: - | U27: 0.014 | W27: 3.250 | X27: 1.540 | Y27: 0.840 | Z27: 0.087
C28: ХЛЕБ БЕЛЫЙ 1 сорт | G28: 30 | I28: 2.280 | J28: 0.240 | L28: 14.760 | N28: 71 | P28: 0.033 | Q28: - | R28: - | U28: 0.330 | W28: 6.000 | X28: 19.500 | Y28: 4.200 | Z28: 0.330
C29: ХЛЕБ РЖАНО-ПШЕНИЧНЫЙ | G29: 20 | I29: 1.000 | J29: 0.200 | L29: 9.000 | N29: 44 | P29: 0.014 | Q29: - | R29: - | U29: 0.108 | W29: 2.760 | X29: 12.720 | Y29: 3.000 | Z29: 0.372
B30: Итого: | H30: 0.00 | I30: =I29+I28+I27+I26+I25+I24+I23 -> 20.018 | J30: =J29+J28+J27+J26+J25+J24+J23 -> 20.544 | L30: =L29+L28+L27+L26+L25+L23+L24 -> 87.841 | N30: =N29+N28+N27+N26+N25+N24+N23 -> 615 | P30: 0.249 | Q30: 39.079 | R30: 21 | U30: 5.939 | W30: 97.62 | X30: 275.682 | Y30: 59.887 | Z30: 7.087
B31: Четверг 1 неделя
B32: ттк | C32: ИКРА КАБАЧКОВАЯ | G32: 60 | I32: 1.140 | J32: 5.340 | L32: 4.620 | N32: 71 | P32: 0.012 | Q32: 4.200 | R32: - | U32: 1.860 | W32: 24.600 | X32: 22.200 | Y32: 9.000 | Z32: 0.420
B33: ТТК от 2020г | C33: БИТОЧКИ РЫБНЫЕ ( из п/ф ) | G33: 100г | I33: 12.082 | J33: 6.341 | L33: 6.635 | N33: 141 | P33: 0.118 | Q33: 0.572 | R33: 37.744 | U33: 0.960 | W33: 94.055 | X33: 244.509 | Y33: 48.062 | Z33: 0.981
B34: №312/2015г,Дели | C34: ПЮРЕ КАРТОФЕЛЬНОЕ С МАСЛОМ | G34: 150/5 | I34: 3.322 | J34: 8.282 | L34: 22.067 | N34: 179 | P34: 0.164 | Q34: 25.943 | R34: 45.500 | U34: 0.231 | W34: 47.805 | X34: 98.835 | Y34: 32.978 | Z34: 1.241
B35: ТТК | C35: КОМПОТ ИЗ ЗАМОРОЖЕННОЙ ВИШНИ | G35: 200 | I35: 0.200 | J35: 0.050 | L35: 23.802 | N35: 109 | P35: 0.008 | Q35: 3.750 | R35: - | U35: 0.075 | W35: 9.970 | X35: 7.500 | Y35: 6.500 | Z35: 0.197
C36: ХЛЕБ РЖАНО-ПШЕНИЧНЫЙ | G36: 20 | I36: 1.000 | J36: 0.200 | L36: 9.000 | N36: 44 | P36: 0.014 | Q36: - | R36: - | U36: 0.108 | W36: 2.760 | X36: 12.720 | Y36: 3.000 | Z36: 0.372
C37: ХЛЕБ БЕЛЫЙ 1 сорт | G37: 30 | I37: 2.280 | J37: 0.240 | L37: 14.760 | N37: 71 | P37: 0.033 | Q37: - | R37: - | U37: 0.330 | W37: 6.000 | X37: 19.500 | Y37: 4.200 | Z37: 0.330
B38: Итого: | H38: 0.00 | I38: =I37+I36+I35+I34+I33+I32 -> 20.024 | J38: =J37+J36+J35+J34+J33+J32 -> 20.453 | L38: =L37+L36+L35+L34+L33+L32 -> 80.884 | N38: =N37+N36+N35+N34+N33+N32 -> 615 | P38: 0.349 | Q38: 34.465 | R38: 83.244 | U38: 3.564 | W38: 185.19 | X38: 405.264 | Y38: 103.74 | Z38: 3.541
B39: Пятница 1 неделя
B40: № 338 Дели 2015 г | C40: ПЛОДЫ И ЯГОДЫ СВЕЖИЕ (ЯБЛОКИ) | G40: 120 | I40: 0.480 | J40: 0.480 | L40: 11.760 | N40: 56 | P40: 0.036 | Q40: 12.000 | R40: - | U40: 0.240 | W40: 19.200 | X40: 13.200 | Y40: 10.800 | Z40: 2.640
B41: №52/2015г,Дели | C41: САЛАТ ИЗ СВЕКЛЫ ОТВАРНОЙ | G41: 60 | I41: 0.855 | J41: 3.653 | L41: 5.016 | N41: 56 | P41: 0.011 | Q41: 5.700 | R41: - | U41: 1.641 | W41: 21.090 | X41: 24.582 | Y41: 12.540 | Z41: 0.798
B42: №265 Сбор.2015г Дели | C42: ПЛОВ | G42: 50/150 | I42: 14.405 | J42: 15.978 | L42: 24.664 | N42: 261 | P42: 0.106 | Q42: 3.510 | R42: - | U42: 3.931 | W42: 22.131 | X42: 240.284 | Y42: 51.154 | Z42: 2.932
B43: №348/2015г,Дели | C43: КОМПОТ ИЗ ПЛОДОВ ИЛИ ЯГОД СУШЕНЫХ (УРЮК) | G43: 200 | I43: 1.000 | J43: 0.080 | L43: 22.560 | N43: 128 | P43: 0.020 | Q43: 0.800 | R43: - | U43: 1.100 | W43: 33.800 | X43: 30.400 | Y43: 21.800 | Z43: 0.700
C44: ХЛЕБ БЕЛЫЙ 1 сорт | G44: 30 | I44: 2.280 | J44: 0.240 | L44: 14.760 | N44: 71 | P44: 0.033 | Q44: - | R44: - | U44: 0.330 | W44: 6.000 | X44: 19.500 | Y44: 4.200 | Z44: 0.330
C45: ХЛЕБ РЖАНО-ПШЕНИЧНЫЙ | G45: 20 | I45: 1.000 | J45: 0.200 | L45: 9.000 | N45: 44 | P45: 0.014 | Q45: - | R45: - | U45: 0.108 | W45: 2.760 | X45: 12.720 | Y45: 3.000 | Z45: 0.372
B46: Итого: | H46: 0.00 | I46: =I45+I44+I43+I42+I41+I40 -> 20.02 | J46: =J45+J44+J43+J42+J41+J40 -> 20.631 | L46: =L45+L44+L43+L42+L41+L40 -> 87.760 | N46: =N45+N44+N43+N42+N41+N40 -> 616 | P46: 0.22 | Q46: 22.01 | R46: - | U46: 7.35 | W46: 104.981 | X46: 340.686 | Y46: 103.494 | Z46: 7.772
B47: Суббота 1 неделя
B48: №70/2015г,Дели | C48: ОВОЩИ НАТУРАЛЬНЫЕ СОЛЕНЫЕ | G48: 60 | I48: 0.480 | J48: 0.060 | L48: 1.020 | N48: 8 | P48: 0.012 | Q48: 3.000 | R48: - | U48: 0.060 | W48: 13.800 | X48: 14.400 | Y48: 8.400 | Z48: 0.360
B49: ТТК 2015г | C49: ПЕЛЬМЕНИ "ДЛЯ УМНИКОВ И УМНИЦ" ОТВАРНЫЕ С МАСЛОМ (грудки ЦБ 2020 г) | G49: 190/5 | I49: 16.090 | J49: 19.150 | L49: 37.885 | N49: 394 | P49: 0.169 | Q49: 2.629 | R49: 54.043 | U49: 1.404 | W49: 48.258 | X49: 213.608 | Y49: 29.119 | Z49: 2.546
B50: ТТК | C50: КОМПОТ ИЗ ЗАМОРОЖЕННОЙ ЧЕРНОЙ СМОРОДИНЫ | G50: 200 | I50: 0.150 | J50: 0.100 | L50: 24.777 | N50: 96 | P50: 0.008 | Q50: 50.000 | R50: - | U50: 0.175 | W50: 9.720 | X50: 8.250 | Y50: 7.750 | Z50: 0.397
C51: ХЛЕБ БЕЛЫЙ 1 сорт | G51: 30 | I51: 2.280 | J51: 0.240 | L51: 14.760 | N51: 71 | P51: 0.033 | Q51: - | R51: - | U51: 0.330 | W51: 6.000 | X51: 19.500 | Y51: 4.200 | Z51: 0.330
C52: ХЛЕБ РЖАНО-ПШЕНИЧНЫЙ | G52: 20 | I52: 1.000 | J52: 0.200 | L52: 9.000 | N52: 44 | P52: 0.014 | Q52: - | R52: - | U52: 0.108 | W52: 2.760 | X52: 12.720 | Y52: 3.000 | Z52: 0.372
B53: Итого: | H53: 0.00 | I53: =I52+I51+I50+I49+I48 -> 20.000 | J53: =J52+J51+J50+J49+J48 -> 19.75 | L53: =L52+L51+L50+L49+L48 -> 87.442 | N53: =N52+N51+N50+N49+N48 -> 613 | P53: 0.236 | Q53: 55.629 | R53: 54.043 | U53: 2.077 | W53: 80.538 | X53: 268.478 | Y53: 52.469 | Z53: 4.005
